bitfinex-derivatives/quotes_BTCF0:USTF0_20210705
["timestamp","ask_amount","ask_price","bid_price","bid_amount"]
[1625459845246,0.48115088,34321.0,34320.0,0.10435147]
[1625459845347,0.77381088,34321.0,34320.0,0.10435147]
[1625459846049,1.11638749,34321.0,34320.0,0.10435147]
[1625459846599,1.91362294,34321.0,34320.0,0.10435147]
[1625459847149,2.03162294,34321.0,34320.0,0.10435147]
[1625459847248,2.27219838,34321.0,34320.0,0.10435147]
[1625459847449,2.77219838,34321.0,34320.0,0.10435147]
[1625459847549,2.27219838,34321.0,34320.0,0.10435147]
[1625459847904,4.49910791,34321.0,34320.0,0.10435147]
[1625459848151,3.30001595,34321.0,34320.0,0.10435147]
[1625459848752,3.18201595,34321.0,34320.0,0.10435147]
[1625459850101,2.15419838,34321.0,34320.0,0.10435147]
[1625459851305,2.21319838,34321.0,34320.0,0.10435147]
[1625459851755,3.24157935,34321.0,34320.0,0.10435147]
[1625459852613,3.18257935,34321.0,34320.0,0.10435147]
[1625459852808,3.18257935,34321.0,34320.0,0.51078147]
[1625459852908,2.84048917,34321.0,34320.0,0.51078147]
[1625459853008,1.8121082,34321.0,34320.0,0.51078147]
[1625459853307,1.8121082,34321.0,34320.0,0.75135691]
[1625459853408,0.95538632,34321.0,34320.0,0.75135691]
[1625459853507,0.72172632,34321.0,34320.0,0.75135691]
[1625459855261,0.72172632,34321.0,34320.0,0.69435691]
[1625459855361,0.72172632,34321.0,34320.0,0.34492691]
[1625459855462,0.78072632,34321.0,34320.0,0.34492691]
[1625459855565,0.83972632,34321.0,34320.0,0.34492691]
[1625459855766,4.27216933,34321.0,34320.0,0.34492691]
[1625459856170,4.27216933,34321.0,34320.0,0.10435147]
[1625459856566,4.78668758,34321.0,34320.0,0.1]
[1625459856766,6.15990696,34321.0,34320.0,0.1]
[1625459856866,7.70475731,34321.0,34320.0,0.1]
[1625459856965,7.20475731,34321.0,34320.0,0.1]
[1625459857166,7.19023906,34321.0,34320.0,0.10435402]
[1625459857517,5.64538871,34321.0,34320.0,0.10435402]
[1625459857618,5.65990596,34321.0,34320.0,0.10435402]
[1625459858420,5.64538871,34321.0,34320.0,0.10435402]
[1625459861276,5.58638871,34321.0,34320.0,0.10435402]
[1625459861484,5.64538871,34321.0,34320.0,0.10435402]
[1625459861778,6.14538871,34321.0,34320.0,0.10435402]
[1625459861877,6.47063871,34321.0,34320.0,0.10435402]
[1625459861978,6.4851492,34321.0,34320.0,0.10435402]
[1625459862277,8.03320903,34321.0,34320.0,0.10435402]
[1625459862527,12.89650903,34321.0,34320.0,0.10435402]
[1625459862627,3.22754664,34321.0,34320.0,0.10435402]
[1625459862727,3.22754664,34321.0,34320.0,0.1]
[1625459863229,8.04621248,34321.0,34320.0,0.1]
[1625459865330,7.54621248,34321.0,34320.0,0.1]
[1625459865581,8.04621248,34321.0,34320.0,0.1]
[1625459867837,12.87491248,34321.0,34320.0,0.1]
[1625459871699,8.04621248,34321.0,34320.0,0.1]
[1625459871848,7.54621248,34321.0,34320.0,0.1]
[1625459872048,7.22096248,34321.0,34320.0,0.39938]
[1625459872150,7.20645199,34321.0,34320.0,0.39938]
[1625459872248,7.14745199,34321.0,34320.0,0.39938]
[1625459872552,7.08845199,34321.0,34320.0,0.39938]
[1625459872648,7.14745199,34321.0,34320.0,0.40373582]
[1625459872800,7.20645199,34321.0,34320.0,0.40373582]
[1625459872899,7.14745199,34321.0,34320.0,0.40373582]
[1625459873249,5.59939216,34321.0,34320.0,0.40373582]
[1625459873349,5.65839216,34321.0,34320.0,0.40373582]
[1625459873951,5.59939216,34321.0,34320.0,0.40373582]
[1625459875103,5.65839216,34321.0,34320.0,0.40373582]
[1625459877709,5.59939216,34321.0,34320.0,0.40373582]
[1625459877812,5.65839216,34321.0,34320.0,0.40373582]
[1625459878712,5.59939216,34321.0,34320.0,0.40373582]
[1625459879364,5.54039216,34321.0,34320.0,0.40373582]
[1625459879915,5.59939216,34321.0,34320.0,0.40373582]
[1625459883772,5.54039216,34321.0,34320.0,0.40373582]
[1625459883872,5.59939216,34321.0,34320.0,0.10435582]
[1625459884075,5.61390338,34321.0,34320.0,0.10435582]
[1625459884174,7.16272922,34321.0,34320.0,0.10435582]
[1625459884577,5.61390338,34321.0,34320.0,0.10435582]
[1625459884675,5.67290338,34321.0,34320.0,0.10435582]
[1625459884777,6.17290338,34321.0,34320.0,0.10435582]
[1625459885075,7.72179599,34321.0,34320.0,0.10435582]
[1625459885175,7.22179599,34321.0,34320.0,0.10435582]
[1625459885377,7.72179599,34321.0,34320.0,0.1]
[1625459886078,11.32449599,34321.0,34320.0,0.1]
[1625459887081,7.72179599,34321.0,34320.0,0.1]
[1625459887633,11.23819599,34321.0,34320.0,0.1]
[1625459890190,11.23819599,34321.0,34315.0,0.004]
[1625459890504,6.3676838,34316.0,34315.0,0.004]
[1625459890588,7.2604138,34316.0,34315.0,0.004]
[1625459890788,7.27492676,34316.0,34315.0,0.004]
[1625459891745,7.75607764,34316.0,34315.0,0.004]
[1625459893998,7.75607764,34316.0,34312.0,0.4302]
[1625459894093,7.75607764,34316.0,34309.0,0.01]
[1625459894295,0.01451446,34315.0,34309.0,0.01]
[1625459894394,0.07351446,34315.0,34309.0,0.01]
[1625459894494,6.36536734,34310.0,34309.0,0.01]
[1625459894595,6.92436734,34310.0,34309.0,0.01]
[1625459894698,6.98336734,34310.0,34309.0,0.01]
[1625459895299,6.97936734,34310.0,34302.0,0.16459585]
[1625459895551,6.97936734,34310.0,34301.0,0.49376219]
[1625459895647,6.97936734,34310.0,34303.0,0.00435755]
[1625459895750,5.54992632,34304.0,34303.0,0.00435755]
[1625459895848,1.52942632,34304.0,34301.0,0.49376219]
[1625459895949,6.40240548,34304.0,34299.0,0.49341943]
[1625459896149,6.40240548,34304.0,34303.0,0.1]
[1625459896252,5.90240548,34304.0,34303.0,0.1]
[1625459896354,1.08842632,34304.0,34303.0,0.1]
[1625459896755,1.58842632,34304.0,34303.0,0.1]
[1625459896955,5.9025237,34304.0,34303.0,0.1]
[1625459897467,6.4025237,34304.0,34303.0,0.1]
[1625459897766,6.4025237,34304.0,34299.0,0.05021943]
[1625459897859,6.4025237,34304.0,34298.0,0.49341943]
[1625459898409,6.4025237,34304.0,34293.0,1.37278516]
[1625459898410,3.4367352,34299.0,34295.0,0.9379]
[1625459898508,0.5,34298.0,34295.0,0.9379]
[1625459898609,0.618,34298.0,34295.0,0.9379]
[1625459898911,2.23400835,34296.0,34295.0,0.9379]
[1625459899009,2.50338835,34296.0,34295.0,0.9379]
[1625459899111,2.62138835,34296.0,34295.0,0.9949]
[1625459899210,3.12138835,34296.0,34295.0,0.9949]
[1625459899410,2.09037365,34296.0,34295.0,0.9949]
[1625459899761,2.31209997,34296.0,34295.0,0.9949]
[1625459901214,2.81209997,34296.0,34295.0,0.9949]
[1625459901315,2.31209997,34296.0,34295.0,0.9949]
[1625459901825,1.62469957,34296.0,34295.0,0.9949]
[1625459903422,1.60910632,34296.0,34295.0,0.9949]
[1625459903820,2.80989641,34296.0,34295.0,0.9949]
[1625459903922,2.30989641,34296.0,34295.0,0.9949]
[1625459905275,1.62375514,34296.0,34295.0,0.9949]
[1625459906727,1.35437514,34296.0,34295.0,0.9949]
[1625459907329,0.83972632,34296.0,34295.0,0.9949]
[1625459908280,0.83972632,34296.0,34295.0,0.9379]
[1625459908381,1.10790632,34296.0,34295.0,0.9379]
[1625459908882,1.6221411,34296.0,34295.0,0.9379]
[1625459909486,1.10790632,34296.0,34295.0,0.9949]
[1625459909934,1.19372896,34296.0,34295.0,0.9949]
[1625459910536,0.92554896,34296.0,34295.0,0.9949]
[1625459914142,0.83972632,34296.0,34295.0,0.9949]
[1625459914693,1.33972632,34296.0,34295.0,0.9949]
[1625459914793,1.58088632,34296.0,34295.0,0.9949]
[1625459914896,2.09475275,34296.0,34295.0,0.9949]
[1625459914994,1.59475275,34296.0,34295.0,0.9949]
[1625459915747,1.08088632,34296.0,34295.0,0.9949]
[1625459916502,0.83972632,34296.0,34295.0,0.9949]
[1625459917300,0.92549756,34296.0,34295.0,0.9949]
[1625459917401,1.14603756,34296.0,34295.0,0.9949]
[1625459919758,1.64603756,34296.0,34295.0,0.9949]
[1625459920360,1.14603756,34296.0,34295.0,0.9949]
[1625459920609,1.14603756,34296.0,34295.0,0.99925639]
[1625459921009,1.64603756,34296.0,34295.0,0.99925639]
[1625459921211,1.14603756,34296.0,34295.0,0.99925639]
[1625459922063,1.64603756,34296.0,34295.0,0.99925639]
[1625459922565,1.56026632,34296.0,34295.0,0.99925639]
[1625459922666,2.07410527,34296.0,34295.0,0.99925639]
[1625459923127,2.07410527,34296.0,34295.0,0.94225639]
[1625459923317,2.08863204,34296.0,34295.0,0.94225639]
[1625459923627,2.08863204,34296.0,34295.0,0.9379]
[1625459923719,4.99992225,34296.0,34295.0,0.9379]
[1625459924471,4.99992225,34296.0,34295.0,0.94225629]
[1625459925473,3.80119598,34296.0,34295.0,0.94225629]
[1625459927483,4.99958586,34296.0,34295.0,0.94225629]
[1625459929241,3.80119598,34296.0,34295.0,0.94225629]
[1625459930391,4.99954507,34296.0,34295.0,0.94225629]
[1625459936656,3.28735703,34296.0,34295.0,0.94225629]
[1625459936757,1.57479309,34296.0,34295.0,0.94225629]
[1625459937560,5.00209493,34296.0,34295.0,0.94225629]
[1625459938815,6.3736642,34296.0,34295.0,0.94225629]
[1625459942674,6.3736642,34296.0,34295.0,0.99925629]
[1625459942771,5.6531242,34296.0,34295.0,1.23198629]
[1625459942972,5.57959743,34296.0,34295.0,1.23198629]
[1625459943172,5.52059743,34296.0,34295.0,1.23198629]
[1625459943273,1.92138476,34296.0,34295.0,1.23198629]
[1625459943774,0.72172632,34296.0,34295.0,1.7240525]
[1625459944372,0.08592567,34300.0,34295.0,3.36376857]
[1625459944471,0.68620482,34302.0,34295.0,3.42276857]
[1625459944675,0.68620482,34302.0,34301.0,0.48115088]
[1625459944771,0.68620482,34302.0,34301.0,0.53815088]
[1625459944971,4.82e-06,34302.0,34301.0,0.53815088]
[1625459945073,0.004,34303.0,34301.0,0.54250453]
[1625459945172,0.004,34303.0,34301.0,0.60150453]
[1625459945321,0.004,34303.0,34302.0,0.00435353]
[1625459945423,0.004,34303.0,34302.0,0.32429353]
[1625459945521,0.004,34303.0,34302.0,0.44029353]
[1625459945772,0.004,34303.0,34302.0,1.42243524]
[1625459946323,0.004,34303.0,34302.0,1.42043524]
[1625459946425,0.004,34303.0,34302.0,2.56507232]
[1625459946523,0.004,34303.0,34302.0,2.62407232]
[1625459947575,0.004,34303.0,34302.0,3.93187723]
[1625459947726,0.24057544,34309.0,34302.0,3.93187723]
[1625459948129,0.24057544,34309.0,34307.0,0.98082308]
[1625459948229,0.24057544,34309.0,34308.0,0.057]
[1625459948330,0.24057544,34309.0,34308.0,0.116]
[1625459948685,0.24057544,34309.0,34308.0,0.12035013]
[1625459948780,0.24057544,34309.0,34308.0,0.60150101]
[1625459948879,0.24057544,34309.0,34308.0,0.59715088]
[1625459955495,0.24057544,34309.0,34308.0,1.57808461]
[1625459956845,0.24057544,34309.0,34308.0,0.59715088]
[1625459956944,0.24057544,34309.0,34308.0,0.68445088]
[1625459957996,0.24057544,34309.0,34308.0,0.74345088]
[1625459958646,0.002,34314.0,34308.0,0.74345088]
[1625459958849,0.002,34314.0,34313.0,0.24057544]
[1625459958947,0.002,34314.0,34313.0,0.69313544]
[1625459959903,0.002,34314.0,34313.0,4.19393544]
[1625459960148,0.002,34314.0,34313.0,4.25293544]
[1625459960800,0.002,34314.0,34313.0,4.49351088]
[1625459962002,0.002,34314.0,34313.0,0.99271088]
[1625459963006,0.002,34314.0,34313.0,5.91831088]
[1625459963757,0.002,34314.0,34313.0,0.99271088]
[1625459964409,0.002,34314.0,34313.0,0.93371088]
[1625459964510,0.002,34314.0,34313.0,0.99271088]
[1625459965564,0.002,34314.0,34313.0,0.93371088]
[1625459965665,0.002,34314.0,34313.0,0.99271088]
[1625459966116,0.002,34314.0,34313.0,0.93371088]
[1625459967320,0.002,34319.0,34313.0,0.99271088]
[1625459967818,0.002,34319.0,34313.0,0.93371088]
[1625459968872,0.002,34319.0,34313.0,0.99271088]
[1625459968978,0.002,34319.0,34318.0,0.24057544]
[1625459969073,0.002,34319.0,34318.0,0.29757544]
[1625459970476,0.002,34319.0,34318.0,0.30192643]
[1625459975836,0.002,34319.0,34318.0,0.36092643]
[1625459976287,0.24057544,34323.0,34318.0,0.36092643]
[1625459976537,0.01452103,34322.0,34319.0,0.00435095]
[1625459977138,0.01452103,34322.0,34320.0,0.24057544]
[1625459977239,0.01452103,34322.0,34320.0,0.29757544]
[1625459977590,0.01452103,34322.0,34321.0,0.00435083]
[1625459995735,1.04201587,34322.0,34321.0,0.00435083]
[1625459997188,1.04201587,34322.0,34321.0,0.06335083]
[1625459997689,1.02749484,34322.0,34321.0,0.059]
[1625459998092,1.04200693,34322.0,34321.0,0.0633542]
[1625459999144,2.24411015,34322.0,34321.0,0.0633542]
[1625460000198,2.24411015,34322.0,34321.0,0.3519342]
[1625460003302,3.62120542,34322.0,34321.0,0.3519342]
[1625460003402,3.62120542,34322.0,34321.0,0.0633542]
[1625460005107,4.30985567,34322.0,34321.0,0.0633542]
[1625460006612,4.58828567,34322.0,34321.0,0.0633542]
[1625460006914,4.58828567,34322.0,34321.0,0.0043542]
[1625460007015,4.64728567,34322.0,34321.0,0.0043542]
[1625460007113,4.70628567,34322.0,34321.0,0.0043542]
[1625460007215,6.25617437,34322.0,34321.0,0.0043542]
[1625460007464,6.49674981,34322.0,34320.0,0.00435451]
[1625460007665,0.5,34321.0,34318.0,0.004]
[1625460007765,0.559,34321.0,34318.0,0.004]
[1625460007966,0.01451495,34320.0,34319.0,0.00435468]
[1625460008174,0.13251495,34320.0,34319.0,0.00435468]
[1625460008269,0.13251495,34320.0,34318.0,0.004]
[1625460008270,0.63251495,34320.0,34318.0,0.004]
[1625460008490,5.85527496,34319.0,34318.0,0.004]
[1625460008574,6.47327496,34319.0,34318.0,0.004]
[1625460008772,6.48779065,34319.0,34318.0,0.004]
[1625460009069,8.21009756,34319.0,34318.0,0.004]
[1625460009423,8.69124844,34319.0,34318.0,0.004]
[1625460012028,4.3858435,34319.0,34318.0,0.004]
[1625460012477,8.68992574,34319.0,34318.0,0.004]
[1625460012979,8.68992574,34319.0,34308.0,0.99100431]
[1625460012980,8.68992574,34319.0,34307.0,0.9201]
[1625460013379,11.08948278,34308.0,34307.0,0.9201]
[1625460013478,12.7631291,34308.0,34307.0,0.9201]
[1625460013780,12.7631291,34308.0,34307.0,1.0201]
[1625460017138,12.7631291,34308.0,34307.0,0.9201]
[1625460019843,7.5279291,34308.0,34307.0,0.9201]
[1625460019942,6.6940091,34308.0,34307.0,0.9201]
[1625460020043,6.6350091,34308.0,34307.0,0.9201]
[1625460020342,5.08540171,34308.0,34307.0,0.9201]
[1625460020743,3.70795379,34308.0,34307.0,0.9201]
[1625460020943,3.76695379,34308.0,34307.0,0.9201]
[1625460021044,3.70795379,34308.0,34307.0,0.9201]
[1625460021146,8.79435379,34308.0,34307.0,0.9201]
[1625460021897,10.16726038,34308.0,34307.0,0.9201]
[1625460022447,5.08086038,34308.0,34307.0,0.9201]
[1625460023100,5.02186038,34308.0,34307.0,0.9201]
[1625460023300,2.44366534,34308.0,34307.0,0.9201]
[1625460024100,3.6447157,34308.0,34307.0,0.9201]
[1625460024250,3.7037157,34308.0,34307.0,0.9201]
[1625460029768,2.50266534,34308.0,34307.0,0.9201]
[1625460030130,2.50266534,34308.0,34307.0,0.9771]
[1625460030970,2.58946534,34308.0,34307.0,0.9771]
[1625460031070,2.50266534,34308.0,34307.0,0.9771]
[1625460031171,1.46953636,34308.0,34307.0,0.9771]
[1625460031976,1.46953636,34308.0,34307.0,0.9201]
[1625460032072,1.46953636,34308.0,34307.0,0.9771]
[1625460032272,2.49854479,34308.0,34307.0,0.9771]
[1625460033074,1.46953636,34308.0,34307.0,0.9771]
[1625460033474,2.49850271,34308.0,34307.0,0.9771]
[1625460033975,1.46953636,34308.0,34307.0,0.9771]
[1625460034428,2.49850004,34308.0,34307.0,0.9771]
[1625460035027,1.98410471,34308.0,34307.0,0.9771]
[1625460035379,1.98410471,34308.0,34307.0,0.98145479]
[1625460035380,3.01306949,34308.0,34307.0,0.98145479]
[1625460035827,1.98410471,34308.0,34307.0,0.98145479]
[1625460036880,1.29529467,34308.0,34307.0,0.98145479]
[1625460037433,1.63840041,34308.0,34307.0,0.98145479]
[1625460037936,1.12383206,34308.0,34307.0,0.98145479]
[1625460038486,1.29534794,34308.0,34307.0,0.98145479]
[1625460039039,1.9814769,34308.0,34307.0,0.98145479]
[1625460039636,1.9814769,34308.0,34307.0,1.22203023]
[1625460041040,1.63851936,34308.0,34307.0,1.22203023]
[1625460041591,1.98152121,34308.0,34307.0,1.22203023]
[1625460042094,1.98152121,34308.0,34307.0,1.43653023]
[1625460042642,1.12392325,34308.0,34307.0,1.43653023]
[1625460043292,3.01102051,34308.0,34307.0,1.43653023]
[1625460043392,3.01102051,34308.0,34307.0,0.98145479]
[1625460044645,3.01102051,34308.0,34307.0,0.9771]
[1625460045098,3.01102051,34308.0,34307.0,0.98145319]
[1625460047048,3.01102051,34308.0,34307.0,0.92445319]
[1625460047148,3.07002051,34308.0,34307.0,0.92445319]
[1625460047348,3.08454538,34308.0,34307.0,0.92445319]
[1625460047452,4.28573421,34308.0,34307.0,0.92445319]
[1625460047900,10.44780933,34308.0,34307.0,0.92445319]
[1625460048251,10.94780933,34308.0,34307.0,0.92445319]
[1625460048352,10.44780933,34308.0,34307.0,0.92445319]
[1625460048552,5.65850933,34308.0,34307.0,0.92445319]
[1625460049051,10.84040933,34308.0,34307.0,0.92445319]
[1625460050306,5.65850933,34308.0,34307.0,0.92445319]
[1625460051309,5.65850933,34308.0,34307.0,0.98145319]
[1625460051508,5.65850933,34308.0,34307.0,0.92445319]
[1625460051812,4.28573421,34308.0,34307.0,0.92445319]
[1625460054722,4.28573421,34308.0,34307.0,0.98145319]
[1625460057678,5.6599197,34308.0,34307.0,0.98145319]
[1625460057978,10.3475197,34308.0,34307.0,0.98145319]
[1625460058980,5.6599197,34308.0,34307.0,0.98145319]
[1625460059230,5.6599197,34308.0,34307.0,0.92445319]
[1625460061437,6.1599197,34308.0,34307.0,0.92445319]
[1625460061898,7.70666158,34308.0,34307.0,0.92445319]
[1625460062189,7.70666158,34308.0,34303.0,0.9889]
[1625460062690,6.36317185,34304.0,34303.0,0.9889]
[1625460062790,6.92217185,34304.0,34303.0,0.9889]
[1625460062893,6.98117185,34304.0,34303.0,0.9889]
[1625460063205,6.99569869,34304.0,34303.0,0.99325442]
[1625460063442,10.66579869,34304.0,34303.0,0.99325442]
[1625460063744,10.90637413,34304.0,34303.0,0.99325442]
[1625460064046,10.90637413,34304.0,34303.0,0.9889]
[1625460065898,12.62739486,34304.0,34303.0,0.9889]
[1625460066954,12.62739486,34304.0,34303.0,0.1647]
[1625460067404,12.62739486,34304.0,34298.0,0.004]
[1625460067702,0.0145277,34303.0,34298.0,0.004]
[1625460067802,0.72172632,34299.0,34298.0,0.004]
[1625460067903,1.22172632,34299.0,34298.0,0.004]
[1625460068004,7.70488264,34299.0,34298.0,0.004]
[1625460072516,2.88792856,34299.0,34298.0,0.004]
[1625460073019,7.70275978,34299.0,34298.0,0.004]
[1625460074671,7.20275978,34299.0,34298.0,0.004]
[1625460076078,5.65455754,34299.0,34298.0,0.004]
[1625460076579,7.20095633,34299.0,34298.0,0.004]
[1625460077030,5.65455754,34299.0,34298.0,0.004]
[1625460078334,5.65455754,34299.0,34293.0,0.004]
[1625460078888,2.23347814,34294.0,34293.0,0.004]
[1625460078988,2.44283814,34294.0,34293.0,0.004]
[1625460079087,2.50183814,34294.0,34293.0,0.004]
[1625460079491,3.7043808,34294.0,34293.0,0.004]
[1625460079941,4.18553168,34294.0,34293.0,0.104]
[1625460080141,5.55939126,34294.0,34293.0,0.104]
[1625460082143,4.18553168,34294.0,34293.0,0.104]
[1625460082694,5.5590434,34294.0,34293.0,0.104]
[1625460083145,4.18553168,34294.0,34293.0,0.104]
[1625460083347,4.18553168,34294.0,34293.0,0.004]
[1625460084348,2.98298902,34294.0,34293.0,0.004]
[1625460087308,2.98298902,34294.0,34291.0,0.057]
[1625460087655,2.98298902,34294.0,34292.0,0.00435406]
[1625460087857,0.68663346,34293.0,34292.0,0.00435406]
[1625460087960,0.74563346,34293.0,34292.0,0.00435406]
[1625460088356,1.26061424,34293.0,34292.0,0.00435406]
[1625460092063,1.27514563,34293.0,34292.0,0.00435406]
[1625460092214,2.30496838,34293.0,34292.0,0.00435406]
[1625460092816,2.30496838,34293.0,34291.0,0.00435412]
[1625460093116,2.29043699,34293.0,34291.0,0.00435412]
[1625460093546,0.9887861,34296.0,34291.0,0.00435412]
[1625460093625,0.9887861,34296.0,34291.0,0.43127412]
[1625460093715,0.9887861,34296.0,34292.0,0.1442]
[1625460093815,0.004,34299.0,34292.0,0.2622]
[1625460093914,0.004,34299.0,34298.0,0.72172632]
[1625460094015,1.55064913,34301.0,34298.0,0.98815632]
[1625460094216,1.03583718,34301.0,34298.0,1.04715632]
[1625460094414,1.03583718,34301.0,34299.0,0.00435299]
[1625460094516,1.03583718,34301.0,34299.0,0.12235299]
[1625460094616,1.03583718,34301.0,34300.0,0.057]
[1625460094715,1.03583718,34301.0,34300.0,0.175]
[1625460094869,0.006,34301.0,34300.0,0.175]
[1625460094969,0.006,34301.0,34300.0,0.17935229]
[1625460095974,0.006,34301.0,34300.0,0.41992773]
[1625460096274,0.008,34302.0,34300.0,0.40792773]
[1625460096375,0.008,34302.0,34300.0,0.36292773]
[1625460096574,0.008,34302.0,34301.0,0.00435215]
[1625460096675,0.008,34302.0,34301.0,0.06335215]
[1625460096774,0.008,34302.0,34301.0,0.12235215]
[1625460098179,0.008,34302.0,34301.0,0.118]
[1625460098376,0.008,34302.0,34301.0,0.12235205]
[1625460099227,0.17173397,34308.0,34301.0,0.12035205]
[1625460099779,0.5149943,34309.0,34307.0,0.16374107]
[1625460099978,0.5149943,34309.0,34308.0,0.48115088]
[1625460100080,0.5149943,34309.0,34308.0,0.59915088]
[1625460100279,0.24057544,34311.0,34308.0,0.59915088]
[1625460100783,0.34326916,34309.0,34308.0,0.59915088]
[1625460101932,0.5149717,34309.0,34308.0,0.59915088]
[1625460102835,0.17170254,34309.0,34308.0,0.59915088]
[1625460103341,0.51496405,34310.0,34308.0,0.59915088]
[1625460103891,0.24057544,34318.0,34309.0,0.16299996]
[1625460103892,0.5148278,34312.0,34309.0,0.16299996]
[1625460103989,0.5148278,34312.0,34309.0,0.22199996]
[1625460104090,0.5148278,34312.0,34311.0,0.24057544]
[1625460105448,0.002,34314.0,34311.0,0.24057544]
[1625460106046,0.24057544,34312.0,34311.0,0.24057544]
[1625460106146,0.57703544,34312.0,34311.0,0.24057544]
[1625460106497,0.63603544,34312.0,34311.0,0.24057544]
[1625460106597,0.57703544,34312.0,34311.0,0.24057544]
[1625460106797,0.63603544,34312.0,34311.0,0.24057544]
[1625460107099,0.57703544,34312.0,34311.0,0.24057544]
[1625460107248,0.63603544,34312.0,34311.0,0.24057544]
[1625460107549,0.69503544,34312.0,34311.0,0.24057544]
[1625460108350,0.63603544,34312.0,34311.0,0.24057544]
[1625460108902,2.00827681,34312.0,34311.0,0.24057544]
[1625460112964,2.06727681,34312.0,34311.0,0.24057544]
[1625460113815,2.00827681,34312.0,34311.0,0.24057544]
[1625460114065,3.20905436,34312.0,34311.0,0.24057544]
[1625460115618,3.26805436,34312.0,34311.0,0.24057544]
[1625460115718,3.26805436,34312.0,34308.0,0.48115088]
[1625460115818,4.0497,34309.0,34308.0,0.48115088]
[1625460115919,4.1677,34309.0,34308.0,0.48115088]
[1625460116069,4.40827544,34309.0,34308.0,0.48115088]
[1625460116275,6.98170725,34309.0,34308.0,0.48115088]
[1625460116872,2.93200725,34309.0,34308.0,0.48115088]
[1625460117271,2.93200725,34309.0,34308.0,0.48515088]
[1625460118676,2.87300725,34309.0,34308.0,0.48515088]
[1625460120026,2.57343181,34309.0,34308.0,0.48515088]
[1625460120127,0.77406405,34311.0,34308.0,0.78472632]
[1625460120226,0.77406405,34311.0,34308.0,1.09306632]
[1625460120326,0.77406405,34311.0,34308.0,1.15642959]
[1625460120530,0.77406405,34311.0,34309.0,0.00436295]
[1625460120630,0.51489032,34313.0,34310.0,0.49136864]
[1625460120731,0.51489032,34313.0,34310.0,0.55036864]
[1625460120829,0.51489032,34313.0,34310.0,0.60936864]
[1625460121131,0.51489032,34313.0,34311.0,5.19606522]
[1625460121229,0.51489032,34313.0,34311.0,5.31406522]
[1625460121430,0.51483739,34315.0,34312.0,0.32736599]
[1625460121531,0.51483739,34315.0,34312.0,0.39073115]
[1625460121830,0.51483739,34315.0,34313.0,0.00436513]
[1625460121932,0.51483691,34314.0,34313.0,0.12236513]
[1625460122130,0.51483691,34314.0,34313.0,0.60351601]
[1625460122834,0.51680253,34317.0,34313.0,0.60351601]
[1625460123135,0.51680253,34317.0,34314.0,0.00436453]
[1625460123234,0.51680253,34317.0,34314.0,0.12236453]
[1625460123387,0.002,34317.0,34315.0,0.49033976]
[1625460123487,0.002,34317.0,34315.0,0.77909976]
[1625460123586,0.002,34317.0,34315.0,0.83809976]
[1625460123687,0.002,34317.0,34316.0,0.00437587]
[1625460123786,0.002,34317.0,34316.0,0.06337587]
[1625460123889,0.002,34317.0,34316.0,0.12237587]
[1625460124187,0.002,34317.0,34316.0,0.36295131]
[1625460124593,0.08790474,34317.0,34316.0,0.36295131]
[1625460125143,0.08790474,34317.0,34316.0,0.30395131]
[1625460125344,0.08790474,34317.0,34316.0,0.36295131]
[1625460126746,0.002,34317.0,34316.0,0.36295131]
[1625460128401,0.002,34317.0,34316.0,0.35857544]
[1625460132256,0.002,34317.0,34316.0,0.29957544]
[1625460132655,0.002,34317.0,34316.0,0.35857544]
[1625460132955,0.002,34317.0,34316.0,0.29957544]
[1625460133109,0.002,34317.0,34316.0,0.35857544]
[1625460133206,0.002,34317.0,34316.0,0.29957544]
[1625460135308,0.59971393,34320.0,34316.0,0.29957544]
[1625460136161,0.59971393,34320.0,34319.0,0.24057544]
[1625460136360,0.25706614,34321.0,34319.0,0.24057544]
[1625460136811,0.08574576,34321.0,34319.0,0.29957544]
[1625460137260,0.51574881,34322.0,34319.0,0.29957544]
[1625460137261,0.25900135,34322.0,34319.0,0.29957544]
[1625460137815,0.60137766,34322.0,34319.0,0.29957544]
[1625460138213,0.51565551,34322.0,34321.0,0.24057544]
[1625460138562,0.60136601,34322.0,34321.0,0.24057544]
[1625460139665,0.2589897,34322.0,34321.0,0.24057544]
[1625460140265,0.60140704,34322.0,34321.0,0.24057544]
[1625460140868,0.0877105,34322.0,34321.0,0.24057544]
[1625460141870,0.25901501,34322.0,34321.0,0.24057544]
[1625460142222,0.25901501,34322.0,34321.0,0.48115088]
[1625460143724,0.60153271,34322.0,34321.0,0.48115088]
[1625460144527,0.25901501,34322.0,34321.0,0.48115088]
[1625460145379,0.25901501,34322.0,34318.0,4.0327]
[1625460145478,0.25901501,34322.0,34318.0,4.0917]
[1625460145782,0.0877105,34322.0,34318.0,4.0917]
[1625460145979,0.0877105,34322.0,34318.0,0.059]
[1625460146280,0.0877105,34322.0,34321.0,0.96230176]
[1625460146380,0.002,34322.0,34321.0,0.96230176]
[1625460146881,0.08777154,34322.0,34321.0,0.96230176]
[1625460147282,0.59970659,34323.0,34321.0,0.96230176]
[1625460147785,0.08579332,34322.0,34321.0,5.55670176]
[1625460148386,0.08579332,34322.0,34321.0,0.96230176]
[1625460149697,0.41744332,34322.0,34321.0,0.96230176]
[1625460149800,0.49089141,34322.0,34321.0,0.24494993]
[1625460150010,0.54989141,34322.0,34321.0,0.24494993]
[1625460150098,0.54989141,34322.0,34321.0,0.00437449]
[1625460150290,1.03104229,34322.0,34321.0,0.00437449]
[1625460150490,1.97333952,34322.0,34321.0,0.00437449]
[1625460150589,1.97333952,34322.0,34319.0,0.00437499]
[1625460150841,0.01444969,34321.0,34319.0,0.00437499]
[1625460150939,0.13244969,34321.0,34319.0,0.00437499]
[1625460151391,0.01444999,34320.0,34319.0,0.00437499]
[1625460151491,0.07344999,34320.0,34319.0,0.00437499]
[1625460151594,3.73163495,34320.0,34319.0,0.00437499]
[1625460151892,3.73163495,34320.0,34318.0,0.004]
[1625460152196,0.01445007,34319.0,34318.0,0.004]
[1625460152295,0.13245007,34319.0,34318.0,0.004]
[1625460152447,0.13245007,34319.0,34318.0,0.00837551]
[1625460152646,3.73360649,34319.0,34318.0,0.00837551]
[1625460152747,3.73360649,34319.0,34318.0,0.004]
[1625460153598,0.13245007,34319.0,34318.0,0.004]
[1625460154149,4.42219788,34319.0,34318.0,0.00837724]
[1625460154349,4.42219788,34319.0,34318.0,0.24895268]
[1625460154700,4.42219788,34319.0,34318.0,0.24457544]
[1625460155152,4.36319788,34319.0,34318.0,0.24457544]
[1625460155251,4.36319788,34319.0,34318.0,0.24895247]